bitfinex/quotes_SOLUSD_20250102
["timestamp","ask_amount","ask_price","bid_price","bid_amount"]
[1735854644862,9.06490466,206.07,206.0,39.06490466]
[1735854646658,9.06490466,206.06,206.0,30.0]
[1735854648140,0.25098,206.1,206.0,30.0]
[1735854648141,9.06490466,206.05,206.0,30.0]
[1735854649358,9.06490466,206.05,205.98,9.06490466]
[1735854649559,9.06490466,206.0,205.96,9.15996541]
[1735854649941,9.06490466,205.98,205.96,7.60216541]
[1735854650643,9.06490466,205.99,205.96,7.60216541]
[1735854650965,9.06490466,205.99,205.95,6.4112]
[1735854655544,9.06490466,206.01,205.95,6.4112]
[1735854655758,9.06490466,206.03,205.96,9.06490466]
[1735854657368,9.06490466,206.02,205.95,15.47610466]
[1735854658068,9.06490466,206.02,205.95,6.4112]
[1735854658266,9.06490466,206.02,205.95,15.47610466]
[1735854661273,9.06490466,206.02,205.97,30.0]
[1735854661570,9.06490466,206.04,205.97,39.06490466]
[1735854662673,9.06490466,206.03,205.97,39.06490466]
[1735854663773,9.06490466,206.04,205.97,39.06490466]
[1735854663974,9.06490466,206.05,205.98,9.06490466]
[1735854664171,9.06490466,206.06,205.99,9.06490466]
[1735854664362,0.25098,206.08,205.99,10.68630466]
[1735854664564,9.06490466,206.06,205.99,10.68630466]
[1735854665482,0.25098,206.08,205.99,10.68630466]
[1735854665483,9.06490466,206.05,205.99,1.6214]
[1735854666279,9.06490466,206.03,205.99,1.6214]
[1735854666582,9.06490466,206.01,205.95,144.3112]
[1735854667369,9.06490466,206.0,205.95,6.4112]
[1735854668958,9.06490466,205.99,205.95,6.4112]
[1735854669959,9.06490466,205.98,205.94,31.6467]
[1735854670360,9.06490466,205.97,205.94,1.6467]
[1735854670560,9.06490466,205.95,205.92,7.60216541]
[1735854671068,9.06490466,205.98,205.92,7.60216541]
[1735854671266,9.06490466,205.98,205.92,16.66707007]
[1735854671486,9.06490466,205.99,205.92,16.66707007]
[1735854671673,9.06490466,205.99,205.92,9.06490466]
[1735854671877,0.25098,206.03,205.93,9.06490466]
[1735854672183,9.06490466,206.0,205.93,9.06490466]
[1735854674464,9.06490466,206.01,205.95,30.0]
[1735854674663,9.06490466,206.02,205.95,39.06490466]
[1735854674863,9.06490466,206.04,205.98,30.0]
[1735854679296,9.06490466,206.04,205.98,36.0016]
[1735854683010,9.06490466,206.02,205.98,6.0016]
[1735854683184,9.06490466,206.01,205.98,6.0016]
[1735854683716,9.06490466,206.02,205.98,6.0016]
[1735854684885,9.06490466,206.03,205.98,6.0016]
[1735854685287,20.0,206.08,205.98,36.0016]
[1735854685598,9.06490466,206.04,205.98,36.0016]
[1735854690010,9.06490466,206.05,205.98,45.06650466]
[1735854690203,9.06490466,206.06,205.99,9.06490466]
[1735854696205,12.1294,206.11,206.01,30.0]
[1735854696411,9.06490466,206.08,206.01,39.06490466]
[1735854700013,9.06490466,206.08,206.02,1.6407]
[1735854703010,20.0,206.11,206.02,10.70560466]
[1735854703212,9.06490466,206.11,206.03,9.06490466]
[1735854703417,9.06490466,206.11,206.04,39.06490466]
[1735854703612,9.06490466,206.11,206.04,30.0]
[1735854704520,9.06490466,206.11,206.04,39.06490466]
[1735854705303,9.06490466,206.12,206.07,30.0]
[1735854705515,9.06490466,206.13,206.07,30.0]
[1735854706190,13.7638,206.18,206.07,30.0]
[1735854706419,9.06490466,206.13,206.07,30.0]
[1735854707118,9.06490466,206.1,206.05,6.2928]
[1735854708703,9.06490466,206.11,206.05,6.2928]
[1735854710195,9.06490466,206.12,206.05,15.35770466]
[1735854711427,1.6383,206.18,206.09,30.0]
[1735854711726,9.06490466,206.15,206.09,30.0]
[1735854711902,9.06490466,206.14,206.09,30.0]
[1735854712316,20.0,206.17,206.09,30.0]
[1735854712509,9.06490466,206.14,206.09,30.0]
[1735854713128,21.6383,206.18,206.09,30.0]
[1735854713330,9.06490466,206.14,206.09,30.0]
[1735854716811,9.06490466,206.14,206.07,146.96490466]
[1735854717033,9.06490466,206.11,206.06,30.0]
[1735854717219,9.06490466,206.1,206.06,30.0]
[1735854718740,9.06490466,206.11,206.06,30.0]
[1735854719128,9.06490466,206.12,206.06,30.0]
[1735854720414,9.06490466,206.11,206.06,30.0]
[1735854721336,9.06490466,206.12,206.06,30.0]
[1735854723846,9.06490466,206.11,206.06,30.0]
[1735854725534,9.06490466,206.12,206.06,30.0]
[1735854727953,0.25098,206.16,206.06,30.0]
[1735854728128,0.25098,206.16,206.06,39.06490466]
[1735854728325,9.06490466,206.13,206.06,30.0]
[1735854730252,9.06490466,206.12,206.06,30.0]
[1735854731051,9.06490466,206.11,206.06,30.0]
[1735854736361,9.06490466,206.11,206.05,6.2928]
[1735854736567,9.06490466,206.06,206.03,7.60216541]
[1735854736755,9.06490466,206.04,206.03,7.60216541]
[1735854737553,9.06490466,206.04,205.99,7.60216541]
[1735854737760,9.06490466,206.01,205.99,7.60216541]
[1735854738359,9.06490466,206.01,205.97,1.589]
[1735854738562,9.06490466,206.02,205.97,1.589]
[1735854739366,9.06490466,206.03,205.97,1.589]
[1735854741646,9.06490466,206.04,205.97,1.589]
[1735854741972,9.06490466,206.06,205.99,39.06490466]
[1735854742549,9.06490466,206.09,206.02,30.0]
[1735854742748,9.06490466,206.09,206.02,39.06490466]
[1735854742948,9.06490466,206.1,206.03,9.06490466]
[1735854745272,9.06490466,206.1,206.02,39.06490466]
[1735854745876,9.06490466,206.09,206.02,39.06490466]
[1735854750071,9.06490466,206.1,206.02,39.06490466]
[1735854750881,9.06490466,206.1,206.02,45.52430466]
[1735854751189,9.06490466,206.1,206.03,9.06490466]
[1735854752465,9.06490466,206.1,206.02,36.4594]
[1735854752666,9.06490466,206.1,206.03,9.06490466]
[1735854753781,9.06490466,206.11,206.04,9.06490466]
[1735854756384,9.06490466,206.12,206.05,39.06490466]
[1735854757587,9.06490466,206.13,206.05,39.06490466]
[1735854758083,9.06490466,206.13,206.06,9.06490466]
[1735854758659,9.06490466,206.13,206.05,39.06490466]
[1735854761383,9.06490466,206.13,206.06,9.06490466]
[1735854761884,9.06490466,206.13,206.08,30.0]
[1735854762068,48.38391864,206.2,206.08,30.0]
[1735854762069,9.06490466,206.14,206.08,30.0]
[1735854763878,0.25098,206.19,206.08,30.0]
[1735854763879,12.1206,206.26,206.11,30.0]
[1735854764066,9.06490466,206.17,206.11,30.0]
[1735854764385,9.06490466,206.16,206.11,30.0]
[1735854771293,9.06490466,206.14,206.08,25.907147]
[1735854771492,20.0,206.17,206.08,25.907147]
[1735854771493,9.06490466,206.11,206.08,25.907147]
[1735854772395,20.25098,206.16,206.08,25.907147]
[1735854772598,9.06490466,206.12,206.08,25.907147]
[1735854772797,9.06490466,206.13,206.08,25.907147]
[1735854772999,9.06490466,206.12,206.08,25.907147]
[1735854774596,20.0,206.16,206.08,25.907147]
[1735854774784,9.06490466,206.14,206.08,25.907147]
[1735854774979,9.06490466,206.13,206.08,25.907147]
[1735854775185,9.06490466,206.12,206.08,25.907147]
[1735854775902,9.06490466,206.13,206.08,25.907147]
[1735854777000,9.06490466,206.14,206.08,25.907147]
[1735854779884,12.1235,206.21,206.1,30.0]
[1735854780085,9.06490466,206.15,206.1,30.0]
[1735854780909,9.06490466,206.16,206.1,30.0]
[1735854781287,9.06490466,206.15,206.1,30.0]
[1735854781510,9.06490466,206.14,206.08,25.907147]
[1735854781706,9.06490466,206.13,206.08,25.907147]
[1735854781903,20.0,206.16,206.08,25.907147]
[1735854782208,9.06490466,206.13,206.08,25.907147]
[1735854782608,9.06490466,206.14,206.08,25.907147]
[1735854783905,20.0,206.16,206.08,34.97205166]
[1735854784102,9.06490466,206.15,206.08,34.97205166]
[1735854784892,9.06490466,206.14,206.08,25.907147]
[1735854791895,9.06490466,206.14,206.07,45.41580466]
[1735854794604,20.0,206.16,206.14,16.83470134]
[1735854794918,9.06490466,206.15,206.14,16.83470134]
[1735854798306,9.06490466,206.17,206.14,16.83470134]
[1735854798606,9.06490466,206.18,206.14,16.83470134]
[1735854799490,9.06490466,206.19,206.14,16.83470134]
[1735854799891,1.5843,206.27,206.14,16.83470134]
[1735854799892,9.06490466,206.2,206.14,16.83470134]
[1735854800113,9.06490466,206.21,206.14,25.899606]
[1735854800823,0.25098,206.24,206.15,9.06490466]
[1735854801005,9.06490466,206.22,206.15,9.06490466]
[1735854801315,9.06490466,206.22,206.16,30.0]
[1735854803917,1.91638604,206.29,206.16,30.0]
[1735854804216,9.06490466,206.22,206.16,30.0]
[1735854804424,9.06490466,206.23,206.16,39.06490466]
[1735854805903,20.0,206.25,206.16,39.06490466]
[1735854806208,9.06490466,206.23,206.16,39.06490466]
[1735854807818,20.0,206.25,206.16,39.06490466]
[1735854808026,20.0,206.25,206.17,10.70110466]
[1735854808322,9.06490466,206.24,206.17,10.70110466]
[1735854808811,9.06490466,206.24,206.18,6.4835]
[1735854809322,12.1194,206.28,206.19,9.06490466]
[1735854809530,12.1178,206.31,206.23,9.06490466]
[1735854809915,9.06490466,206.3,206.23,9.06490466]
[1735854810320,12.1178,206.31,206.22,39.06490466]
[1735854810523,9.06490466,206.3,206.22,39.06490466]
[1735854810828,9.06490466,206.3,206.23,10.68190466]
[1735854814838,9.06490466,206.25,206.21,137.9]
[1735854815126,36.25961864,206.3,206.19,30.0]
[1735854815127,9.06490466,206.23,206.19,30.0]
[1735854816006,9.06490466,206.22,206.18,8.0322]
[1735854816208,24.027864,206.29,206.18,8.0322]
[1735854816419,9.06490466,206.21,206.18,8.0322]
[1735854817011,9.06490466,206.22,206.18,8.0322]
[1735854817206,9.06490466,206.23,206.18,8.0322]
[1735854817406,9.06490466,206.24,206.19,30.0]
[1735854817611,9.06490466,206.25,206.19,30.0]
[1735854821642,9.06490466,206.26,206.19,39.06490466]
[1735854822544,1.5125,206.32,206.22,9.06490466]
[1735854822838,9.06490466,206.29,206.22,39.06490466]
[1735854824035,9.06490466,206.29,206.22,30.0]
[1735854824341,9.06490466,206.29,206.22,39.06490466]
[1735854824517,9.06490466,206.28,206.22,30.0]
[1735854826527,9.06490466,206.29,206.22,30.0]
[1735854829546,9.06490466,206.3,206.25,30.0]
[1735854830247,9.06490466,206.31,206.25,30.0]
[1735854830550,9.06490466,206.32,206.25,30.0]
[1735854830749,9.06490466,206.32,206.25,39.06490466]
[1735854831335,9.06490466,206.32,206.28,30.0]
[1735854831825,9.06490466,206.31,206.25,167.9]
[1735854832024,9.06490466,206.29,206.25,137.9]
[1735854833658,9.06490466,206.3,206.25,137.9]
[1735854834349,9.06490466,206.3,206.25,167.9]
[1735854834927,9.06490466,206.31,206.25,167.9]
[1735854835449,9.06490466,206.32,206.25,39.06490466]
[1735854836755,9.06490466,206.34,206.28,30.0]
[1735854837135,9.06490466,206.35,206.28,30.0]
[1735854837334,1.6318,206.42,206.33,30.0]
[1735854837551,9.06490466,206.39,206.33,30.0]
[1735854837942,9.06490466,206.38,206.33,30.0]
[1735854838341,9.06490466,206.38,206.31,6.3904]
[1735854838661,9.06490466,206.38,206.31,15.45530466]
[1735854839542,9.06490466,206.38,206.33,30.0]
[1735854839741,9.06490466,206.39,206.33,30.0]
[1735854840856,12.1102,206.44,206.36,30.0]
[1735854840857,9.06490466,206.41,206.36,30.0]
[1735854841362,9.06490466,206.43,206.36,39.06490466]
[1735854841540,13.7402,206.47,206.36,39.06490466]
[1735854841868,9.06490466,206.44,206.37,9.06490466]
[1735854842036,9.06490466,206.45,206.39,30.0]
[1735854843233,9.06490466,206.47,206.39,45.43270466]
[1735854843434,9.06490466,206.49,206.43,30.0]
[1735854844155,9.06490466,206.5,206.43,39.06490466]
[1735854844549,20.0,206.51,206.46,30.0]
[1735854844550,9.06490466,206.51,206.46,30.0]
[1735854844860,9.06490466,206.53,206.46,39.06490466]
[1735854845652,36.25961864,206.6,206.49,30.0]
[1735854845653,9.06490466,206.55,206.49,30.0]
[1735854846371,9.06490466,206.54,206.49,30.0]
[1735854846738,9.06490466,206.55,206.49,30.0]
[1735854847657,12.1007,206.6,206.49,39.06490466]
[1735854847834,9.06490466,206.56,206.49,39.06490466]
[1735854848035,9.06490466,206.57,206.5,9.06490466]
[1735854848448,9.06490466,206.57,206.52,30.0]
[1735854848963,9.06490466,206.58,206.52,30.0]
[1735854850253,9.06490466,206.53,206.47,145.5351]
[1735854850447,9.06490466,206.48,206.46,30.0]
[1735854850873,9.06490466,206.49,206.46,30.0]
[1735854851569,9.06490466,206.51,206.46,30.0]
[1735854852575,9.06490466,206.5,206.46,30.0]
[1735854852783,9.06490466,206.48,206.46,30.0]
[1735854853357,9.06490466,206.49,206.46,30.0]
[1735854856202,9.06490466,206.5,206.46,30.0]
[1735854856392,9.06490466,206.49,206.46,30.0]
[1735854859578,12.104,206.55,206.4,30.0]
[1735854859579,9.06490466,206.47,206.4,30.0]
[1735854859784,9.06490466,206.44,206.4,30.0]
[1735854860266,9.06490466,206.45,206.4,30.0]
[1735854860465,9.06490466,206.47,206.4,39.06490466]
[1735854860774,9.06490466,206.48,206.41,9.06490466]
[1735854860970,9.06490466,206.49,206.43,30.0]
[1735854862584,9.06490466,206.47,206.4,176.96490466]
[1735854862878,9.06490466,206.47,206.4,167.9]
[1735854863066,9.06490466,206.47,206.4,176.96490466]
[1735854863267,9.06490466,206.49,206.45,30.0]
[1735854867391,9.06490466,206.48,206.42,167.9]
[1735854867601,9.06490466,206.46,206.42,137.9]
[1735854869799,9.06490466,206.46,206.39,176.96490466]
[1735854872987,9.06490466,206.45,206.39,30.0]
[1735854873176,9.06490466,206.43,206.37,17.02890466]
[1735854873371,9.06490466,206.42,206.37,7.964]
[1735854873698,9.06490466,206.4,206.36,30.0]
[1735854876707,9.06490466,206.42,206.36,30.0]
[1735854877004,9.06490466,206.41,206.36,30.0]
[1735854878983,12.1096,206.45,206.36,30.0]
[1735854879201,9.06490466,206.41,206.36,30.0]
[1735854881293,12.1096,206.45,206.36,30.0]
[1735854881488,9.06490466,206.42,206.36,30.0]
[1735854882099,9.06490466,206.43,206.36,39.06490466]
[1735854882313,29.06490466,206.45,206.38,9.06490466]
[1735854882725,20.0,206.45,206.4,9.06490466]
[1735854883019,20.0,206.45,206.39,39.06490466]
[1735854886724,9.06490466,206.46,206.39,39.06490466]
[1735854888618,9.06490466,206.46,206.39,30.0]
[1735854888931,9.06490466,206.46,206.39,39.06490466]
[1735854890521,9.06490466,206.47,206.4,9.06490466]
[1735854890720,9.06490466,206.48,206.4,15.52200466]
[1735854890918,9.06490466,206.48,206.41,9.06490466]
[1735854894233,9.06490466,206.45,206.4,6.4571]
[1735854895312,9.06490466,206.46,206.4,6.4571]
[1735854895514,9.06490466,206.47,206.4,15.52200466]
[1735854899425,9.06490466,206.47,206.37,7.60216541]
[1735854899426,9.06490466,206.43,206.37,7.60216541]
[1735854900047,9.06490466,206.43,206.36,39.06490466]
[1735854901352,9.06490466,206.44,206.37,9.06490466]
[1735854902451,9.06490466,206.44,206.38,9.06490466]
[1735854904364,9.06490466,206.45,206.38,9.06490466]
[1735854904657,9.06490466,206.47,206.41,9.06490466]
[1735854905526,9.06490466,206.48,206.41,9.06490466]
[1735854906235,20.0,206.49,206.42,39.06490466]
[1735854906434,29.06490466,206.49,206.42,39.06490466]
[1735854907351,29.06490466,206.49,206.43,9.06490466]
[1735854907553,12.1032,206.56,206.46,30.0]
[1735854907726,6.1526,206.6,206.48,9.06490466]
[1735854907727,9.06490466,206.55,206.48,9.06490466]
[1735854908227,7.92681049,206.56,206.51,9.06490466]
[1735854908427,9.06490466,206.58,206.51,9.06490466]
[1735854909554,12.1012,206.59,206.5,39.06490466]
[1735854909555,9.06490466,206.57,206.5,39.06490466]
[1735854912266,9.06490466,206.58,206.51,9.06490466]
[1735854912452,9.06490466,206.59,206.54,30.0]
[1735854912668,29.06490466,206.6,206.54,30.0]
[1735854912970,9.06490466,206.59,206.54,30.0]
[1735854913777,20.0,206.6,206.51,39.06490466]
[1735854913778,9.06490466,206.58,206.51,39.06490466]
[1735854914072,9.06490466,206.57,206.51,30.0]
[1735854914648,9.06490466,206.58,206.51,39.06490466]
[1735854915457,20.0,206.6,206.5,6.0749]
[1735854915458,9.06490466,206.54,206.5,6.0749]
[1735854915770,9.06490466,206.53,206.46,9.06490466]
[1735854916291,9.06490466,206.54,206.47,9.06490466]
[1735854916480,9.06490466,206.54,206.48,30.0]
[1735854917450,9.06490466,206.55,206.48,39.06490466]
[1735854918376,9.06490466,206.57,206.5,9.06490466]
[1735854918567,9.06490466,206.58,206.51,9.06490466]
[1735854918768,9.06490466,206.58,206.51,39.06490466]
[1735854921080,0.12549,206.61,206.51,39.06490466]
[1735854921272,9.06490466,206.6,206.53,9.06490466]
[1735854921476,12.0977,206.65,206.53,9.06490466]
[1735854921477,9.06490466,206.61,206.53,9.06490466]
[1735854922799,9.06490466,206.6,206.53,9.06490466]
[1735854923089,9.06490466,206.61,206.54,9.06490466]
[1735854923297,9.06490466,206.6,206.53,9.06490466]
[1735854923463,9.06490466,206.6,206.52,16.75150466]
[1735854923663,9.06490466,206.57,206.52,7.6866]
[1735854924897,9.06490466,206.58,206.52,7.6866]
[1735854927075,9.06490466,206.58,206.52,16.75150466]
[1735854928993,9.06490466,206.58,206.52,7.6866]
[1735854929179,9.06490466,206.57,206.52,7.6866]
[1735854932377,9.06490466,206.56,206.52,7.6866]
[1735854932579,9.06490466,206.54,206.48,30.0]
[1735854933379,20.0,206.61,206.51,30.0]
[1735854933575,9.06490466,206.57,206.51,30.0]
[1735854933975,9.06490466,206.58,206.51,39.06490466]
[1735854934498,9.06490466,206.57,206.51,30.0]
[1735854937098,9.06490466,206.54,206.48,167.9]
[1735854940881,9.06490466,206.5,206.47,8.2542]
[1735854941098,9.06490466,206.51,206.47,8.2542]
[1735854941398,9.06490466,206.5,206.45,30.0]
[1735854941779,9.06490466,206.49,206.42,46.99430466]
[1735854942504,9.06490466,206.48,206.42,46.99430466]
[1735854944308,9.06490466,206.5,206.43,9.06490466]
[1735854946004,9.06490466,206.5,206.42,37.9294]
[1735854946320,9.06490466,206.49,206.42,46.99430466]
[1735854947284,9.06490466,206.5,206.43,9.06490466]
[1735854948605,9.06490466,206.49,206.42,46.99430466]
[1735854948820,24.027864,206.55,206.42,37.9294]
[1735854948821,9.06490466,206.47,206.42,37.9294]
[1735854949007,9.06490466,206.46,206.42,7.9294]
[1735854950807,9.06490466,206.45,206.39,30.0]
[1735854951688,9.06490466,206.44,206.39,30.0]
[1735854952807,12.1081,206.48,206.39,30.0]
[1735854952808,9.06490466,206.45,206.39,30.0]
[1735854953414,9.06490466,206.45,206.39,39.06490466]
[1735854956117,9.06490466,206.47,206.4,9.06490466]
[1735854957716,9.06490466,206.46,206.4,9.06490466]
[1735854960319,30.8194,206.56,206.43,45.20580466]
[1735854960522,9.06490466,206.5,206.43,45.20580466]
[1735854963825,9.06490466,206.5,206.43,36.1409]
[1735854964023,9.06490466,206.5,206.43,45.20580466]
[1735854964821,9.06490466,206.47,206.43,36.1409]
[1735854965921,9.06490466,206.48,206.43,36.1409]
[1735854966126,9.06490466,206.49,206.43,36.1409]
[1735854967823,9.06490466,206.48,206.43,6.1409]
[1735854968013,9.06490466,206.45,206.38,15.31130466]
[1735854968404,9.06490466,206.44,206.38,15.31130466]
[1735854969226,9.06490466,206.44,206.38,6.2464]
[1735854969404,9.06490466,206.43,206.38,6.2464]
[1735854970819,9.06490466,206.44,206.38,6.2464]
[1735854981531,9.06490466,206.43,206.38,6.2464]
[1735854984911,9.06490466,206.44,206.38,6.2464]
[1735854987315,9.06490466,206.43,206.38,6.2464]
[1735854988920,9.06490466,206.44,206.4,30.0]
[1735854989124,12.1078,206.48,206.4,30.0]
[1735854989125,9.06490466,206.46,206.4,30.0]
[1735854990928,9.06490466,206.45,206.4,30.0]
[1735854991431,9.06490466,206.44,206.4,30.0]
[1735854992023,9.06490466,206.45,206.4,30.0]
[1735854993931,9.06490466,206.44,206.4,30.0]
[1735854994741,12.1081,206.48,206.4,30.0]
[1735854994742,9.06490466,206.45,206.4,30.0]
[1735855001445,12.1081,206.48,206.4,30.0]
[1735855001446,9.06490466,206.46,206.4,30.0]
[1735855002341,9.06490466,206.47,206.4,30.0]
[1735855002838,9.06490466,206.46,206.4,30.0]
[1735855004639,29.06490466,206.45,206.4,30.0]
[1735855007439,9.06490466,206.44,206.4,30.0]
[1735855009436,9.06490466,206.43,206.38,13.84856541]
[1735855010038,9.06490466,206.43,206.38,6.2464]
[1735855011428,9.06490466,206.44,206.38,6.2464]
[1735855012738,9.06490466,206.43,206.38,6.2464]
[1735855013245,9.06490466,206.42,206.38,6.2464]
[1735855013548,9.06490466,206.41,206.38,6.2464]
[1735855015247,9.06490466,206.41,206.37,31.5009]
[1735855015442,9.06490466,206.4,206.37,1.5009]
[1735855017757,9.06490466,206.41,206.37,1.5009]
[1735855017946,29.06490466,206.43,206.37,31.5009]
[1735855018250,20.0,206.41,206.37,31.5009]
[1735855018854,20.0,206.41,206.38,7.60216541]
[1735855019728,29.06490466,206.43,206.38,7.60216541]
[1735855021545,9.06490466,206.41,206.38,7.60216541]
[1735855022051,20.0,206.43,206.38,7.60216541]
[1735855022228,29.06490466,206.43,206.38,7.60216541]
[1735855022636,20.0,206.43,206.38,16.66707007]
[1735855023052,20.0,206.43,206.39,9.06490466]
[1735855023430,20.0,206.43,206.39,16.66707007]
[1735855024148,20.0,206.43,206.39,7.60216541]
[1735855024454,9.06490466,206.41,206.39,7.60216541]
[1735855024945,9.06490466,206.41,206.37,39.10306541]
[1735855026257,9.06490466,206.42,206.37,31.5009]
[1735855027154,9.06490466,206.41,206.37,31.5009]
[1735855028035,9.06490466,206.42,206.37,31.5009]
[1735855029342,9.06490466,206.41,206.37,39.10306541]
[1735855030133,32.1106,206.43,206.37,39.10306541]
[1735855030333,9.06490466,206.42,206.37,39.10306541]
[1735855036064,9.06490466,206.41,206.37,39.10306541]
[1735855036373,9.06490466,206.38,206.37,7.60216541]
[1735855036948,9.06490466,206.38,206.35,7.60216541]
[1735855037160,32.1106,206.43,206.35,7.60216541]
[1735855037161,9.06490466,206.37,206.35,7.60216541]
[1735855037362,9.06490466,206.38,206.35,7.60216541]
[1735855037562,9.06490466,206.39,206.35,7.60216541]
[1735855037763,9.06490466,206.39,206.34,44.06906541]
[1735855040063,9.06490466,206.38,206.34,44.06906541]
[1735855042365,12.1125,206.4,206.34,44.06906541]
[1735855042553,9.06490466,206.37,206.34,44.06906541]
[1735855043857,9.06490466,206.38,206.34,44.06906541]
[1735855044143,12.1125,206.4,206.34,44.06906541]
[1735855044144,9.06490466,206.4,206.34,44.06906541]
[1735855044464,9.06490466,206.41,206.34,53.13397007]
[1735855044968,9.06490466,206.41,206.35,7.60216541]
[1735855045270,29.06490466,206.4,206.35,7.60216541]
[1735855045468,9.06490466,206.39,206.35,7.60216541]
[1735855048270,9.06490466,206.38,206.35,7.60216541]
[1735855049867,9.06490466,206.39,206.35,7.60216541]
[1735855051270,20.0,206.4,206.35,7.60216541]
[1735855051471,32.1103,206.44,206.35,7.60216541]
[1735855051675,36.25961864,206.5,206.37,39.06490466]
[1735855051849,36.25961864,206.5,206.38,10.66070466]
[1735855051850,9.06490466,206.45,206.38,10.66070466]
[1735855052050,9.06490466,206.45,206.4,30.0]
[1735855053272,29.06490466,206.44,206.4,30.0]
[1735855053474,29.06490466,206.44,206.4,37.60216541]
[1735855053678,9.06490466,206.43,206.4,37.60216541]
[1735855054050,9.06490466,206.43,206.4,30.0]
[1735855055152,20.0,206.44,206.4,30.0]
[1735855055351,9.06490466,206.43,206.4,30.0]
[1735855057078,9.06490466,206.42,206.4,30.0]
[1735855057876,9.06490466,206.41,206.4,30.0]
[1735855058274,9.06490466,206.41,206.38,9.19796541]
[1735855058459,9.06490466,206.39,206.38,7.60216541]
[1735855059479,9.06490466,206.39,206.35,7.60216541]
[1735855059665,36.25961864,206.4,206.35,7.60216541]
[1735855059666,9.06490466,206.36,206.35,7.60216541]
[1735855060157,9.06490466,206.36,206.34,44.06906541]
[1735855060578,9.06490466,206.36,206.34,36.4669]
[1735855062480,9.06490466,206.35,206.33,7.60216541]
[1735855062777,9.06490466,206.34,206.33,7.60216541]
[1735855062973,9.06490466,206.35,206.33,7.60216541]
[1735855065177,9.06490466,206.35,206.32,7.60216541]
[1735855065479,9.06490466,206.36,206.32,7.60216541]
[1735855067271,9.06490466,206.35,206.32,7.60216541]
[1735855068086,9.06490466,206.35,206.33,7.60216541]
[1735855069874,9.06490466,206.36,206.33,7.60216541]
[1735855072894,20.0,206.43,206.35,30.0]
[1735855073198,12.1108,206.43,206.35,30.0]
[1735855073383,9.06490466,206.42,206.38,30.0]
[1735855076695,1.634,206.51,206.42,30.0]
[1735855076901,9.06490466,206.47,206.42,30.0]
[1735855077098,1.5558,206.56,206.42,30.0]
[1735855077283,9.06490466,206.48,206.42,30.0]
[1735855077607,9.06490466,206.47,206.42,30.0]
[1735855080602,9.06490466,206.46,206.42,30.0]
[1735855081483,9.06490466,206.43,206.42,30.0]
[1735855081882,9.06490466,206.44,206.42,30.0]
[1735855084599,9.06490466,206.43,206.39,37.60216541]
[1735855084805,9.06490466,206.41,206.39,37.60216541]
[1735855085102,9.06490466,206.41,206.39,30.0]
[1735855085619,12.1078,206.48,206.37,7.60216541]
[1735855085620,9.06490466,206.4,206.37,7.60216541]
[1735855085916,0.12549,206.47,206.37,7.60216541]
[1735855085917,9.06490466,206.38,206.37,7.60216541]
[1735855086489,9.06490466,206.38,206.36,30.0]
[1735855087910,9.06490466,206.39,206.36,30.0]
[1735855088115,9.06490466,206.4,206.36,30.0]
[1735855090927,9.06490466,206.42,206.39,30.0]
[1735855092217,9.06490466,206.43,206.39,30.0]
[1735855094021,9.06490466,206.44,206.39,30.0]
[1735855094910,13.7591,206.48,206.39,30.0]
[1735855094911,9.06490466,206.45,206.39,30.0]
[1735855096712,9.06490466,206.45,206.43,30.0]
[1735855098812,3.45584306,206.53,206.43,30.0]
[1735855099013,9.06490466,206.46,206.43,30.0]
[1735855099529,9.06490466,206.45,206.43,30.0]
[1735855113940,12.107,206.5,206.43,30.0]
[1735855114143,29.06490466,206.47,206.43,30.0]
[1735855115549,9.06490466,206.48,206.43,30.0]
[1735855116446,9.06490466,206.49,206.43,30.0]
[1735855118149,9.06490466,206.48,206.43,30.0]
[1735855122241,1.5196,206.53,206.46,30.0]
[1735855122425,20.0,206.52,206.46,30.0]
[1735855122624,9.06490466,206.5,206.46,30.0]
[1735855122826,0.12549,206.58,206.46,30.0]
[1735855123034,9.06490466,206.51,206.46,30.0]
[1735855125751,9.06490466,206.53,206.49,30.0]
[1735855127933,9.06490466,206.54,206.49,30.0]
[1735855128565,9.06490466,206.54,206.52,30.0]